bitfinex/quotes_BTCUSD_20240921
["timestamp","ask_amount","ask_price","bid_price","bid_amount"]
[1726917042462,0.63804828,63116.0,63115.0,1.12502473]
[1726917043333,0.63204828,63116.0,63115.0,1.12502473]
[1726917043585,0.64304828,63116.0,63115.0,1.12502473]
[1726917043828,0.32504828,63116.0,63115.0,0.80814373]
[1726917044035,0.21525347,63116.0,63115.0,0.80814373]
[1726917044257,0.39356073,63116.0,63115.0,0.80814373]
[1726917044925,0.38756073,63116.0,63115.0,0.80814373]
[1726917045330,0.39256073,63116.0,63115.0,0.80814373]
[1726917046920,0.37615726,63116.0,63115.0,0.80814373]
[1726917047134,0.39260232,63116.0,63115.0,0.80814373]
[1726917048474,0.37615726,63116.0,63115.0,0.80814373]
[1726917048931,0.39260395,63116.0,63115.0,0.80814373]
[1726917049821,0.71060395,63116.0,63115.0,0.80814373]
[1726917053258,0.69415726,63116.0,63115.0,0.80814373]
[1726917053496,0.71056981,63116.0,63115.0,0.80814373]
[1726917053724,0.71072484,63116.0,63115.0,0.80814373]
[1726917055754,0.82965374,63116.0,63115.0,0.80814373]
[1726917055971,0.64345374,63116.0,63115.0,1.12502473]
[1726917056194,0.48446683,63116.0,63115.0,1.12502473]
[1726917056437,0.20653793,63116.0,63115.0,1.12502473]
[1726917056892,0.32546683,63116.0,63115.0,1.12502473]
[1726917057628,0.20653793,63116.0,63115.0,1.12502473]
[1726917057855,0.20153793,63116.0,63115.0,1.12502473]
[1726917058088,0.20853793,63116.0,63115.0,1.12502473]
[1726917058328,0.20353793,63116.0,63115.0,1.12502473]
[1726917058552,0.31546683,63116.0,63115.0,1.12502473]
[1726917058798,0.32946683,63116.0,63115.0,1.12502473]
[1726917059479,0.20353793,63116.0,63115.0,1.12502473]
[1726917059695,0.29868083,63116.0,63115.0,1.12502473]
[1726917059943,0.30563059,63116.0,63115.0,1.12502473]
[1726917060398,0.21048769,63116.0,63115.0,1.12502473]
[1726917060625,0.30563059,63116.0,63115.0,1.12502473]
[1726917061515,0.3500254,63116.0,63115.0,1.12502473]
[1726917061758,0.52873749,63116.0,63115.0,1.12502473]
[1726917062212,0.52872689,63116.0,63115.0,1.12502473]
[1726917062751,0.62386813,63116.0,63115.0,1.12502473]
[1726917063289,0.52872689,63116.0,63115.0,1.12502473]
[1726917063509,0.62386813,63116.0,63115.0,1.12502473]
[1726917063940,0.52872689,63116.0,63115.0,1.12502473]
[1726917064160,0.62386813,63116.0,63115.0,1.12502473]
[1726917065497,0.52872689,63116.0,63115.0,1.12502473]
[1726917065933,0.62386813,63116.0,63115.0,1.12502473]
[1726917066149,0.51239702,63116.0,63115.0,1.12502473]
[1726917066367,0.52879076,63116.0,63115.0,1.12502473]
[1726917066831,0.623932,63116.0,63115.0,1.12502473]
[1726917067272,0.52879076,63116.0,63115.0,1.12502473]
[1726917067929,0.42139627,63116.0,63115.0,1.12502473]
[1726917068608,0.35004374,63116.0,63115.0,1.12502473]
[1726917069283,0.42139403,63116.0,63115.0,1.12502473]
[1726917069494,0.42139324,63116.0,63115.0,1.12502473]
[1726917071270,0.41439039,63116.0,63115.0,1.12502473]
[1726917071698,0.41139039,63116.0,63115.0,1.12502473]
[1726917071938,0.41539039,63116.0,63115.0,1.12502473]
[1726917073088,0.39899665,63116.0,63115.0,1.12502473]
[1726917073327,0.41539157,63116.0,63115.0,1.12502473]
[1726917076078,0.41538641,63116.0,63115.0,1.12502473]
[1726917076931,0.34404492,63116.0,63115.0,1.12502473]
[1726917078060,0.32765,63116.0,63115.0,1.12502473]
[1726917078362,0.34402517,63116.0,63115.0,1.12502473]
[1726917079233,0.39158133,63116.0,63115.0,1.12502473]
[1726917080960,0.37520616,63116.0,63115.0,1.12502473]
[1726917081173,0.39160972,63116.0,63115.0,1.12502473]
[1726917084087,0.39161303,63116.0,63115.0,1.12502473]
[1726917085227,0.41538773,63116.0,63115.0,1.12502473]
[1726917085444,0.52375189,63116.0,63115.0,1.12502473]
[1726917085665,0.61881679,63116.0,63115.0,1.12502473]
[1726917087214,0.52371023,63116.0,63115.0,1.12502473]
[1726917087902,0.32765,63116.0,63115.0,1.12502473]
[1726917088359,0.61736355,63116.0,63115.0,1.12502473]
[1726917088851,0.34407073,63116.0,63115.0,1.12502473]
[1726917089786,0.41540039,63116.0,63115.0,1.12502473]
[1726917090237,0.34407073,63116.0,63115.0,1.12502473]
[1726917092062,0.34407684,63116.0,63115.0,1.12502473]
[1726917093190,0.52234796,63116.0,63115.0,1.12502473]
[1726917094761,0.61745452,63116.0,63115.0,1.12502473]
[1726917095207,0.61836639,63116.0,63115.0,1.12502473]
[1726917096155,0.61836433,63116.0,63115.0,1.12502473]
[1726917099130,0.52323964,63116.0,63115.0,1.12502473]
[1726917099570,0.61838039,63116.0,63115.0,1.12502473]
[1726917099989,0.60195561,63116.0,63115.0,1.12502473]
[1726917100204,0.61838268,63116.0,63115.0,1.12502473]
[1726917101851,0.52324193,63116.0,63115.0,1.12502473]
[1726917102493,0.51924193,63116.0,63115.0,1.12502473]
[1726917102711,0.61039101,63116.0,63115.0,1.12502473]
[1726917102925,0.61439101,63116.0,63115.0,1.12502473]
[1726917104446,0.61039101,63116.0,63115.0,1.12502473]
[1726917104665,0.62339101,63116.0,63115.0,1.12502473]
[1726917104896,0.61899968,63116.0,63115.0,1.12502473]
[1726917105156,0.5148487,63116.0,63115.0,1.12502473]
[1726917105375,0.5228487,63116.0,63115.0,1.12502473]
[1726917105604,0.5308487,63116.0,63115.0,1.12502473]
[1726917107954,0.2128487,63116.0,63115.0,1.12502473]
[1726917108958,0.19642163,63116.0,63115.0,1.12502473]
[1726917109094,0.21283822,63116.0,63115.0,1.12502473]
[1726917112484,0.21283822,63116.0,63115.0,1.11004184]
[1726917112702,0.21283822,63116.0,63115.0,1.1250218]
[1726917113395,0.21280901,63116.0,63115.0,1.1250218]
[1726917113604,0.53080901,63116.0,63115.0,1.1250218]
[1726917114753,0.51480901,63116.0,63115.0,1.1250218]
[1726917115010,0.52280901,63116.0,63115.0,1.1250218]
[1726917115711,0.51680901,63116.0,63115.0,1.1250218]
[1726917115928,0.51880901,63116.0,63115.0,1.1250218]
[1726917117966,0.61395931,63116.0,63115.0,1.1250218]
[1726917118428,0.59757193,63116.0,63115.0,1.1250218]
[1726917119256,0.59946929,63116.0,63115.0,1.1250218]
[1726917120721,0.32365,63116.0,63115.0,1.1250218]
[1726917121574,0.59954231,63116.0,63115.0,1.1250218]
[1726917122870,0.5043909,63116.0,63115.0,1.1250218]
[1726917123147,0.59954231,63116.0,63115.0,1.1250218]
[1726917124038,0.5043909,63116.0,63115.0,1.1250218]
[1726917124268,0.32365,63116.0,63115.0,1.1250218]
[1726917124723,0.39501349,63116.0,63115.0,1.1250218]
[1726917124921,0.39101349,63116.0,63115.0,1.1250218]
[1726917125145,0.39501349,63116.0,63115.0,1.1250218]
[1726917125373,0.39901349,63116.0,63115.0,1.1250218]
[1726917125585,0.39501349,63116.0,63115.0,1.1250218]
[1726917125793,0.32365,63116.0,63115.0,1.1250218]
[1726917126242,0.32765,63116.0,63115.0,1.1250218]
[1726917127545,0.50703392,63116.0,63115.0,1.1250218]
[1726917128178,0.32765,63116.0,63115.0,1.1250218]
[1726917128597,0.50705768,63116.0,63115.0,1.1250218]
[1726917130132,0.60220909,63116.0,63115.0,1.1250218]
[1726917130338,0.50705768,63116.0,63115.0,1.1250218]
[1726917132231,0.50705523,63116.0,63115.0,1.1250218]
[1726917132704,0.32365,63116.0,63115.0,1.1250218]
[1726917132921,0.50408461,63116.0,63115.0,1.4419028]
[1726917133148,0.5070888,63116.0,63115.0,1.1250218]
[1726917133423,0.39401688,63116.0,63115.0,1.1250218]
[1726917133636,0.00465,63116.0,63115.0,1.6415028]
[1726917134284,0.00165,63116.0,63115.0,1.6415028]
[1726917134500,0.00165,63116.0,63115.0,1.6435028]
[1726917134766,0.00265,63116.0,63115.0,1.6435028]
[1726917135169,0.00465,63116.0,63115.0,1.6435028]
[1726917135419,0.00165,63116.0,63115.0,1.6435028]
[1726917135633,0.00165,63116.0,63115.0,1.6415028]
[1726917149144,0.52495,63117.0,63116.0,1.109066]
[1726917149606,0.52495,63117.0,63116.0,1.12642636]
[1726917150398,0.52495,63117.0,63116.0,1.44330236]
[1726917153804,0.52495,63117.0,63116.0,1.12642636]
[1726917157862,0.57248558,63117.0,63116.0,1.12642636]
[1726917158294,0.71235,63117.0,63116.0,1.12642636]
[1726917158530,0.89200018,63117.0,63116.0,1.12642636]
[1726917159019,0.98707134,63117.0,63116.0,1.12642636]
[1726917159466,0.98607134,63117.0,63116.0,1.12642636]
[1726917160153,0.98807134,63117.0,63116.0,1.12642636]
[1726917160392,0.99107134,63117.0,63116.0,1.12642636]
[1726917160868,0.89600018,63117.0,63116.0,1.12642636]
[1726917161091,0.99107942,63117.0,63116.0,1.12642636]
[1726917161337,0.71535,63117.0,63116.0,1.12642636]
[1726917161566,0.98597897,63117.0,63116.0,1.12642636]
[1726917161759,0.98809291,63117.0,63116.0,1.12642636]
[1726917161964,0.99109291,63117.0,63116.0,1.12642636]
[1726917162267,0.71735,63117.0,63116.0,1.12642636]
[1726917162500,0.71435,63117.0,63116.0,1.12642636]
[1726917162939,0.72135,63117.0,63116.0,1.12642636]
[1726917163156,0.71935,63117.0,63116.0,1.12642636]
[1726917163379,0.72235,63117.0,63116.0,1.12642636]
[1726917163602,0.71935,63117.0,63116.0,1.12642636]
[1726917164034,0.90401744,63117.0,63116.0,1.12807636]
[1726917164693,0.72535,63117.0,63116.0,1.12807636]
[1726917170202,0.90595512,63117.0,63116.0,1.12807636]
[1726917170901,0.79665018,63117.0,63116.0,1.12807636]
[1726917171343,0.79664999,63117.0,63116.0,1.12807636]
[1726917172680,0.72535,63117.0,63116.0,1.12807636]
[1726917172903,0.79664906,63117.0,63116.0,1.12807636]
[1726917173313,0.72535,63117.0,63116.0,1.12807636]
[1726917175503,0.79664763,63117.0,63116.0,1.12807636]
[1726917175924,0.72535,63117.0,63116.0,1.12807636]
[1726917177676,0.79664537,63117.0,63116.0,1.12807636]
[1726917178102,0.72535,63117.0,63116.0,1.12807636]
[1726917178486,0.79664449,63117.0,63116.0,1.12807636]
[1726917180845,0.72535,63117.0,63116.0,1.12807636]
[1726917181582,0.79664408,63117.0,63116.0,1.12807636]
[1726917185090,0.7966461,63117.0,63116.0,1.12807636]
[1726917185320,0.60924662,63117.0,63116.0,1.12807636]
[1726917188555,0.53795,63117.0,63116.0,1.12807636]
[1726917190365,0.72054411,63117.0,63116.0,1.12807636]
[1726917191600,0.81561337,63117.0,63116.0,1.12807636]
[1726917196662,0.72054411,63117.0,63116.0,1.12807636]
[1726917198889,0.83938069,63117.0,63116.0,1.12807636]
[1726917200755,0.83338069,63117.0,63116.0,1.12807636]
[1726917201223,0.83138069,63117.0,63116.0,1.12807636]
[1726917201694,0.83848526,63117.0,63116.0,1.12807636]
[1726917202104,0.71954411,63117.0,63116.0,1.12807636]
[1726917202391,0.83848573,63117.0,63116.0,1.12807636]
[1726917202623,0.71954411,63117.0,63116.0,1.12807636]
[1726917203091,0.71343212,63117.0,63116.0,1.12807636]
[1726917203334,0.71943212,63117.0,63116.0,1.12807636]
[1726917205451,0.83840527,63117.0,63116.0,1.12807636]
[1726917205900,0.71943212,63117.0,63116.0,1.12807636]
[1726917206364,0.81460036,63117.0,63116.0,1.12807636]
[1726917206607,0.81460192,63117.0,63116.0,1.12807636]
[1726917207083,0.83840527,63117.0,63116.0,1.12807636]
[1726917209158,0.81459912,63117.0,63116.0,1.12807636]
[1726917209389,0.53595,63117.0,63116.0,1.12807636]
[1726917209623,0.60732212,63117.0,63116.0,1.12807636]
[1726917210083,0.03595,63117.0,63116.0,1.98422324]
[1726917210545,0.03595,63117.0,63116.0,1.99838656]
[1726917210785,0.02995,63117.0,63116.0,1.99838656]
[1726917211055,0.02495,63117.0,63116.0,1.99838656]
[1726917211295,0.02495,63117.0,63116.0,1.98422324]
[1726917211776,0.02495,63117.0,63116.0,1.98221194]
[1726917212010,0.001652,63122.0,63121.0,0.158425]
[1726917212238,0.160652,63122.0,63121.0,1.58525898]
[1726917212466,0.160652,63122.0,63121.0,1.93556471]
[1726917212708,0.001652,63122.0,63121.0,1.93556471]
[1726917212932,0.001652,63122.0,63121.0,2.25241571]
[1726917213177,0.00165,63131.0,63130.0,0.666709]
[1726917213421,0.049724,63134.0,63133.0,0.791977]
[1726917213678,0.049724,63134.0,63130.0,0.35455367]
[1726917213679,0.00165,63135.0,63134.0,0.475179]
[1726917213926,0.00165,63135.0,63134.0,0.791965]
[1726917214169,0.00165,63135.0,63134.0,1.43914321]
[1726917214648,0.159,63141.0,63140.0,0.666634]
[1726917215076,0.159,63141.0,63140.0,1.77995567]
[1726917215080,0.159,63141.0,63140.0,1.63218074]
[1726917216780,0.159,63141.0,63140.0,1.63318074]
[1726917217481,0.159,63141.0,63140.0,1.63518074]
[1726917221362,0.159,63141.0,63140.0,1.44368074]
[1726917222251,0.159,63141.0,63140.0,1.44568074]
[1726917223149,0.159,63141.0,63140.0,1.44368074]
[1726917225669,0.159825,63141.0,63140.0,1.44368074]
[1726917230242,0.159825,63141.0,63140.0,1.44268074]
[1726917230678,0.159825,63141.0,63140.0,1.45887576]
[1726917230893,0.160825,63141.0,63140.0,1.46087576]
[1726917231862,0.160825,63141.0,63140.0,1.44468074]
[1726917235806,0.15310873,63141.0,63140.0,1.44468074]
[1726917241341,0.15310873,63141.0,63140.0,1.46121141]
[1726917248459,0.15310873,63141.0,63140.0,1.46123539]
[1726917249577,0.15310873,63141.0,63140.0,1.46288539]
[1726917251326,0.15310873,63141.0,63140.0,1.14612939]
[1726917251327,0.33690873,63141.0,63140.0,1.14612939]
[1726917251577,0.001825,63141.0,63140.0,1.12957474]
[1726917252317,0.001825,63141.0,63140.0,1.12757474]
[1726917252552,0.001825,63141.0,63140.0,1.12957474]
[1726917253011,0.001825,63141.0,63140.0,1.12757474]
[1726917253229,0.000825,63141.0,63140.0,1.12557474]
[1726917253483,0.001825,63141.0,63140.0,1.12857474]
[1726917253953,0.001825,63141.0,63140.0,1.12557474]
[1726917257229,0.001825,63141.0,63140.0,0.80881874]
[1726917257456,0.29008748,63141.0,63140.0,0.80881874]
[1726917257674,0.4744653,63141.0,63140.0,0.80881874]
[1726917257899,0.37970282,63141.0,63140.0,0.80881874]
[1726917258564,0.195325,63141.0,63140.0,0.80881874]
[1726917260410,0.24282289,63141.0,63140.0,0.80881874]
[1726917261534,0.24282289,63141.0,63140.0,1.12557474]
[1726917263162,0.24281479,63141.0,63140.0,1.12557474]
[1726917264324,0.195325,63141.0,63140.0,1.12557474]
[1726917268417,0.001825,63141.0,63140.0,1.12557474]
[1726917271202,0.000825,63141.0,63140.0,1.44233074]
[1726917271429,0.000825,63141.0,63140.0,1.12557474]
[1726917271640,0.000825,63141.0,63140.0,1.12657474]
[1726917272092,0.000825,63141.0,63140.0,1.12557474]
[1726917273425,0.000825,63141.0,63140.0,1.13057474]
[1726917273917,0.000825,63141.0,63140.0,1.12657474]
[1726917274155,0.000825,63141.0,63140.0,1.12857474]
[1726917275920,0.000825,63141.0,63140.0,1.44533074]
[1726917276186,0.000825,63141.0,63140.0,1.12857474]
[1726917289291,0.000825,63141.0,63140.0,1.44533074]
[1726917289517,0.000825,63141.0,63140.0,1.12857474]
[1726917302399,0.000825,63141.0,63140.0,1.12757474]
[1726917303126,0.000825,63141.0,63140.0,1.12557474]
[1726917303341,0.000825,63141.0,63140.0,1.12657474]
[1726917305088,0.000825,63141.0,63140.0,1.44333074]
[1726917308727,0.000825,63141.0,63140.0,1.76008674]
[1726917308969,0.000825,63141.0,63140.0,1.44333074]
[1726917309199,0.000825,63141.0,63140.0,1.63473074]
[1726917309636,0.000825,63141.0,63140.0,1.95348674]
[1726917310077,0.000825,63141.0,63140.0,1.63473074]
[1726917310326,0.000825,63141.0,63140.0,1.95148674]
[1726917310996,0.000825,63144.0,63143.0,1.027727]
[1726917311211,0.000825,63144.0,63143.0,1.661209]
[1726917311438,0.000825,63144.0,63143.0,1.67856726]
[1726917312340,0.003825,63144.0,63143.0,1.67856726]
[1726917312801,0.000825,63144.0,63143.0,1.67856726]
[1726917313244,0.000825,63144.0,63143.0,1.68156726]
[1726917313474,0.002825,63144.0,63143.0,1.68156726]
[1726917313697,0.000825,63144.0,63143.0,1.67856726]
[1726917314156,0.001825,63144.0,63143.0,1.68356726]
[1726917315296,0.002825,63144.0,63143.0,2.35776193]
[1726917315517,0.002825,63144.0,63143.0,2.35976193]
[1726917315967,0.002825,63144.0,63143.0,2.67450293]
[1726917316868,0.002825,63144.0,63143.0,2.43862793]
[1726917318379,0.002825,63144.0,63143.0,2.44062793]
[1726917320213,0.002825,63144.0,63143.0,2.45719015]
[1726917320442,0.002825,63144.0,63143.0,2.44062793]
[1726917320661,0.002825,63144.0,63143.0,2.45718989]
[1726917321143,0.002825,63144.0,63143.0,2.45518989]
[1726917322653,0.002825,63144.0,63143.0,2.45718989]
[1726917322868,0.01177218,63153.0,63152.0,1.425132]
[1726917323348,0.8484,63157.0,63156.0,1.108366]
[1726917323611,0.8484,63157.0,63156.0,1.425042]
[1726917323823,0.655,63157.0,63156.0,1.44232004]
[1726917326535,0.662,63157.0,63156.0,1.44332004]
[1726917326990,0.663,63157.0,63156.0,1.44232004]
[1726917327199,0.67,63157.0,63156.0,1.44332004]
[1726917327630,0.663,63157.0,63156.0,1.44232004]
[1726917327843,0.67,63157.0,63156.0,1.44332004]
[1726917331833,0.670825,63157.0,63156.0,1.44332004]
[1726917342795,0.662825,63157.0,63156.0,1.44332004]
[1726917343269,0.662825,63157.0,63156.0,1.44232004]
[1726917343270,0.658825,63157.0,63156.0,1.44232004]
[1726917343507,0.655825,63157.0,63156.0,1.44232004]
[1726917343736,0.657825,63157.0,63156.0,1.44232004]
[1726917343956,0.501825,63157.0,63156.0,1.44232004]
[1726917346562,0.501825,63157.0,63156.0,1.12564404]
[1726917347682,0.51818622,63157.0,63156.0,1.12564404]
[1726917348812,0.67318622,63157.0,63156.0,1.12564404]
[1726917349028,0.67318681,63157.0,63156.0,1.12564404]
[1726917349764,0.656825,63157.0,63156.0,1.12564404]
[1726917352142,0.4832,63163.0,63156.0,1.12564404]
[1726917352143,0.00165,63175.0,63165.0,0.002]
[1726917352415,0.00165,63175.0,63156.0,0.56803209]
[1726917352416,0.00165,63175.0,63174.0,0.576877]
[1726917352661,0.00165,63175.0,63174.0,1.68968567]
[1726917352905,0.00165,63175.0,63174.0,1.70531692]
[1726917353646,0.02965,63175.0,63174.0,1.70531692]
[1726917354119,0.01565,63175.0,63174.0,1.70531692]
[1726917354349,0.00165,63175.0,63174.0,1.70531692]
[1726917354591,0.00165,63175.0,63174.0,1.71031692]
[1726917354592,0.00265,63175.0,63174.0,1.71031692]
[1726917355053,0.00365,63175.0,63174.0,1.71831692]
[1726917355529,0.00365,63175.0,63174.0,2.03490192]
[1726917355997,0.000825,63181.0,63176.0,1.424587]
[1726917356257,0.000825,63181.0,63176.0,1.68764067]
[1726917356501,0.000825,63181.0,63176.0,1.70526906]
[1726917356735,0.000825,63181.0,63179.0,1.42452]
[1726917356962,0.000825,63181.0,63179.0,1.52452]
[1726917357193,0.000825,63181.0,63179.0,1.54207878]
[1726917357699,0.1919,63203.0,63179.0,1.54207878]
[1726917357700,0.1919,63203.0,63183.0,1.42443]
[1726917357928,0.31703303,63196.0,63183.0,1.52443]
[1726917358153,0.31703303,63196.0,63183.0,1.54191999]
[1726917359361,0.1912,63187.0,63183.0,1.12537999]
[1726917360294,0.0025658,63184.0,63183.0,1.13937999]
[1726917360517,0.0015658,63184.0,63183.0,1.13137999]
[1726917360732,0.0005658,63184.0,63183.0,1.12537999]
[1726917361227,0.0015658,63184.0,63183.0,1.12537999]
[1726917363841,0.0015658,63184.0,63183.0,1.54191999]
[1726917364087,0.0015658,63184.0,63183.0,1.22537999]
[1726917364536,0.0005658,63184.0,63183.0,1.22537999]
[1726917365224,0.0015658,63184.0,63183.0,1.22537999]
[1726917366345,0.0005658,63184.0,63183.0,1.22537999]
[1726917366786,0.0015658,63184.0,63183.0,1.22537999]
[1726917367237,0.0013908,63184.0,63183.0,1.22537999]
[1726917367481,0.0033908,63184.0,63183.0,1.12537999]
[1726917367702,0.0063908,63184.0,63183.0,1.12537999]
[1726917368926,0.0063908,63184.0,63183.0,0.01748999]
[1726917368927,0.48594447,63184.0,63183.0,0.01748999]
[1726917369164,0.55391892,63184.0,63183.0,0.17575999]
[1726917369405,0.55391892,63184.0,63183.0,0.15827]
[1726917369627,0.55391892,63184.0,63183.0,0.17724078]
[1726917369862,0.54891892,63184.0,63183.0,0.17724078]
[1726917370421,0.57291892,63184.0,63183.0,0.17824078]
[1726917370641,0.49294447,63184.0,63183.0,0.17724078]
[1726917370886,0.49294447,63184.0,63183.0,0.49478078]
[1726917370887,0.49494447,63184.0,63183.0,0.49478078]
[1726917371334,0.49494447,63184.0,63183.0,0.49378078]
[1726917371800,0.50894447,63184.0,63183.0,0.49478078]
[1726917373203,0.50894447,63184.0,63183.0,0.01997078]
[1726917374079,0.59889732,63184.0,63183.0,0.01897078]
[1726917374330,0.48094447,63184.0,63183.0,0.01897078]
[1726917374575,0.50894447,63184.0,63183.0,0.17726873]
[1726917374799,0.50894447,63184.0,63183.0,0.15827]
[1726917375061,0.0293908,63184.0,63183.0,0.81034873]
[1726917375323,0.0293908,63184.0,63183.0,1.12688873]
[1726917375808,0.0153908,63184.0,63183.0,1.12688873]
[1726917376235,0.0293908,63184.0,63183.0,1.12688873]
[1726917376437,0.0153908,63184.0,63183.0,1.12688873]
[1726917376751,0.0013908,63184.0,63183.0,1.12788873]
[1726917376975,0.0153908,63184.0,63183.0,1.12788873]
[1726917377202,0.0043908,63184.0,63183.0,1.12688873]
[1726917377429,0.0063908,63184.0,63183.0,1.12688873]
[1726917381377,0.02276427,63184.0,63183.0,1.12688873]
[1726917382995,0.0063908,63184.0,63183.0,1.12688873]
[1726917390246,0.0063908,63184.0,63183.0,0.81034873]
[1726917390480,0.0063908,63184.0,63183.0,0.49380873]
[1726917390711,0.16944447,63184.0,63183.0,0.49380873]
[1726917391897,0.16944447,63184.0,63183.0,0.81034873]
[1726917400424,0.16944447,63184.0,63183.0,1.12688873]
[1726917400641,0.16944447,63184.0,63183.0,0.81034873]
[1726917400832,0.16944447,63184.0,63183.0,1.12688873]
[1726917401077,0.16944447,63184.0,63183.0,0.81034873]
[1726917405647,0.16944447,63184.0,63183.0,1.12688873]
[1726917406806,0.0063908,63184.0,63183.0,1.12688873]
[1726917407267,0.0063908,63184.0,63183.0,0.81034873]
[1726917407725,0.0063908,63184.0,63183.0,1.12688873]
[1726917414184,0.0063908,63184.0,63183.0,0.81034873]
[1726917415376,0.0063908,63184.0,63183.0,1.12688873]
[1726917415825,0.0063908,63184.0,63183.0,0.81034873]
[1726917416564,0.05384643,63184.0,63183.0,1.12688873]
[1726917417263,0.05384643,63184.0,63183.0,0.81034873]
[1726917417480,0.053853,63184.0,63183.0,0.81034873]
[1726917418372,0.053853,63184.0,63183.0,1.12688873]
[1726917419082,0.053853,63184.0,63183.0,0.81034873]
[1726917419512,0.0063908,63184.0,63183.0,0.81034873]
[1726917420656,0.0355072,63184.0,63183.0,1.12688873]
[1726917420890,0.0355072,63184.0,63183.0,0.81034873]
[1726917421870,0.0063908,63184.0,63183.0,0.81034873]
[1726917422100,0.0063908,63184.0,63183.0,1.12688873]
[1726917422338,0.0063908,63184.0,63183.0,0.81034873]
[1726917422567,0.0063908,63184.0,63183.0,1.12688873]
[1726917423036,0.0775841,63184.0,63183.0,1.12688873]
[1726917426198,0.0745841,63184.0,63183.0,1.12688873]
[1726917426430,0.0805841,63184.0,63183.0,1.12688873]
[1726917426877,0.0875841,63184.0,63183.0,1.12788873]
[1726917427097,0.0725841,63184.0,63183.0,1.12688873]
[1726917427324,0.0725841,63184.0,63183.0,0.81034873]
[1726917427555,0.0855841,63184.0,63183.0,0.81134873]
[1726917427775,0.0143908,63184.0,63183.0,0.81134873]
[1726917428018,0.29343271,63184.0,63183.0,0.81134873]
[1726917428243,0.21482838,63184.0,63183.0,0.81134873]
[1726917428459,0.30983704,63184.0,63183.0,0.81134873]
[1726917428678,0.21482838,63184.0,63183.0,0.81134873]
[1726917429112,0.20782838,63184.0,63183.0,0.81134873]
[1726917429543,0.21482838,63184.0,63183.0,0.81034873]
[1726917429792,0.22682838,63184.0,63183.0,1.12688873]
[1726917430007,0.33248389,63184.0,63183.0,1.12688873]
[1726917430226,0.29684546,63184.0,63183.0,1.12688873]
[1726917430491,0.31184546,63184.0,63183.0,1.12688873]
[1726917431575,0.2954415,63184.0,63183.0,1.12688873]
[1726917431816,0.31185575,63184.0,63183.0,0.81034873]
[1726917432045,0.31186089,63184.0,63183.0,0.81034873]
[1726917432275,0.31186089,63184.0,63183.0,1.12688873]
[1726917432504,0.31186089,63184.0,63183.0,0.81034873]
[1726917432736,0.21683867,63184.0,63183.0,0.81034873]
[1726917432968,0.31186503,63184.0,63183.0,0.81034873]
[1726917433216,0.33549418,63184.0,63183.0,0.81034873]
[1726917434422,0.24436014,63184.0,63183.0,0.81034873]
[1726917434660,0.36301565,63184.0,63183.0,0.81034873]
[1726917436521,0.24436014,63184.0,63183.0,0.81034873]
[1726917436756,0.36301565,63184.0,63183.0,0.81034873]
[1726917437018,0.24436014,63184.0,63183.0,0.81034873]
[1726917437452,0.36375712,63184.0,63183.0,0.81034873]
[1726917438892,0.24510161,63184.0,63183.0,0.81034873]
[1726917439379,0.36375712,63184.0,63183.0,0.81034873]
[1726917440748,0.31907993,63184.0,63183.0,0.81034873]
[1726917440961,0.3637548,63184.0,63183.0,0.81034873]
[1726917442060,0.24509929,63184.0,63183.0,0.81034873]
[1726917442272,0.3637548,63184.0,63183.0,0.81034873]
[1726917442498,0.36375271,63184.0,63183.0,0.81034873]
[1726917442682,0.2450972,63184.0,63183.0,0.81034873]
[1726917442947,0.24417596,63184.0,63183.0,1.12688873]
[1726917443180,0.15611765,63184.0,63183.0,1.12688873]
[1726917443418,0.33923003,63184.0,63183.0,1.12688873]
[1726917443873,0.06106358,63184.0,63183.0,1.12688873]
[1726917444365,0.12535092,63184.0,63183.0,1.12688873]
[1726917444835,0.13135092,63184.0,63183.0,1.12688873]
[1726917445049,0.12335092,63184.0,63183.0,1.12688873]
[1726917445486,0.12435092,63184.0,63183.0,1.12688873]
[1726917445758,0.05306358,63184.0,63183.0,1.12688873]
[1726917445980,0.04606358,63184.0,63183.0,1.12688873]
[1726917446197,0.11735092,63184.0,63183.0,1.12688873]
[1726917446431,0.12335092,63184.0,63183.0,1.12688873]
[1726917447077,0.12835092,63184.0,63183.0,1.12688873]
[1726917447788,0.05706358,63184.0,63183.0,0.81034873]
[1726917448256,0.12834646,63184.0,63183.0,1.12688873]
[1726917449382,0.12834594,63184.0,63183.0,1.12688873]
[1726917450957,0.10458343,63184.0,63183.0,1.12688873]
[1726917451840,0.0123908,63184.0,63183.0,1.12688873]
[1726917452076,0.07414493,63184.0,63183.0,1.12688873]
[1726917452282,0.12166302,63184.0,63183.0,1.12688873]
[1726917452776,0.12166206,63184.0,63183.0,1.12688873]
[1726917453266,0.07414493,63184.0,63183.0,1.12688873]
[1726917454201,0.0739537,63184.0,63183.0,1.12688873]
[1726917454428,0.04662511,63184.0,63183.0,1.12688873]
[1726917455870,0.04661179,63184.0,63183.0,1.12688873]
[1726917456797,0.04661179,63184.0,63183.0,1.44342873]
[1726917457033,0.04661179,63184.0,63183.0,1.12688873]
[1726917457981,0.04661179,63184.0,63183.0,1.44342873]
[1726917459340,0.04653926,63184.0,63183.0,1.44342873]
[1726917460051,0.02938532,63184.0,63183.0,1.44342873]
[1726917460926,0.02938532,63184.0,63183.0,1.12688873]
[1726917462328,0.02938532,63184.0,63183.0,1.44342873]
[1726917463015,0.0123908,63184.0,63183.0,1.44342873]
[1726917463243,0.0293673,63184.0,63183.0,1.44342873]
[1726917469987,0.0123908,63184.0,63183.0,1.44342873]
[1726917470236,0.02938764,63184.0,63183.0,1.44342873]
[1726917471596,0.01838764,63184.0,63183.0,1.44342873]
[1726917471814,0.02638764,63184.0,63183.0,1.44342873]
[1726917477200,0.02640714,63184.0,63183.0,1.44342873]
[1726917480559,0.02632405,63184.0,63183.0,1.44342873]
[1726917486530,0.02632996,63184.0,63183.0,1.44342873]
[1726917489924,0.0093908,63184.0,63183.0,1.44342873]
[1726917490137,0.0263218,63184.0,63183.0,1.44342873]
[1726917493330,0.02632796,63184.0,63183.0,1.44342873]
[1726917500119,0.02628774,63184.0,63183.0,1.44342873]
[1726917500574,0.02328774,63184.0,63183.0,1.44342873]
[1726917501031,0.02828774,63184.0,63183.0,1.44342873]
[1726917501254,0.02328774,63184.0,63183.0,1.44342873]
[1726917501903,0.02928774,63184.0,63183.0,1.44342873]
[1726917502334,0.02328774,63184.0,63183.0,1.44342873]
[1726917502741,0.02928774,63184.0,63183.0,1.44342873]
[1726917507374,0.02928774,63184.0,63183.0,1.12688873]
[1726917507850,0.02928774,63184.0,63183.0,1.44342873]
[1726917509256,0.02928774,63184.0,63183.0,1.12688873]
[1726917510408,0.02928774,63184.0,63183.0,1.44342873]
[1726917511362,0.02929825,63184.0,63183.0,1.44342873]
[1726917515139,0.02929825,63184.0,63183.0,1.45973528]
[1726917516294,0.02929825,63184.0,63183.0,1.44342873]